bitfinex-derivatives/quotes_ETHF0:USTF0_20250810
["timestamp","ask_amount","ask_price","bid_price","bid_amount"]
[1754829551685,2.3093,4192.7,4192.6,1.2382]
[1754829552688,2.3093,4192.7,4192.6,2.9557868]
[1754829552891,2.3093,4192.7,4192.6,3.5763868]
[1754829553792,2.3093,4192.7,4192.6,3.3694868]
[1754829554489,2.3093,4192.7,4192.6,2.9557868]
[1754829555893,2.3093,4192.7,4192.6,0.9664]
[1754829556295,2.3093,4192.7,4192.6,2.6839868]
[1754829556788,2.3093,4192.7,4192.6,0.9664]
[1754829557194,2.3093,4192.7,4192.6,3.2989868]
[1754829557396,2.3093,4192.7,4192.2,0.47705]
[1754829557397,1.8017,4192.6,4192.5,1.7175868]
[1754829557597,1.8017,4192.4,4192.3,1.7175868]
[1754829557791,2.27874,4192.3,4192.2,1.7175868]
[1754829557988,0.7835,4192.1,4192.0,1.7175868]
[1754829558194,1.5621,4192.1,4192.0,3.5799868]
[1754829558890,1.8017,4192.1,4192.0,3.5799868]
[1754829559303,1.8017,4192.1,4192.0,1.8624]
[1754829560202,1.8017,4192.1,4192.0,0.9662]
[1754829560701,1.4123,4192.1,4192.0,1.8624]
[1754829562804,1.5621,4192.1,4192.0,3.57814928]
[1754829562997,2.03916,4192.1,4192.0,3.57814928]
[1754829567907,2.27876,4192.1,4192.0,3.57814928]
[1754829568805,2.27876,4192.1,4192.0,1.2474]
[1754829569007,2.27876,4192.1,4192.0,0.9662]
[1754829569708,0.91496,4192.1,4192.0,3.57814928]
[1754829569893,1.88936,4192.1,4192.0,3.57814928]
[1754829570501,1.88936,4192.1,4192.0,3.57720378]
[1754829571101,1.88936,4192.1,4192.0,1.8624]
[1754829571499,1.88936,4192.1,4192.0,3.57721764]
[1754829571911,1.88936,4192.1,4192.0,1.8624]
[1754829572199,1.88936,4192.1,4192.0,3.5772166]
[1754829572405,1.88936,4192.1,4192.0,1.8624]
[1754829572806,1.88936,4192.1,4192.0,3.57723229]
[1754829573104,0.91496,4192.1,4192.0,3.57723229]
[1754829573304,1.88936,4192.1,4192.0,3.57723229]
[1754829574508,2.03916,4192.1,4192.0,3.57723229]
[1754829575800,2.27876,4192.1,4192.0,0.2643]
[1754829576005,1.26056,4192.1,4191.9,1.71483229]
[1754829576200,1.7375,4192.0,4191.9,2.12613229]
[1754829576401,1.7375,4192.0,4191.9,2.40123229]
[1754829576899,1.24239,4191.9,4191.8,1.71483229]
[1754829577207,1.24241,4191.7,4191.6,0.5378]
[1754829577406,2.21461,4191.7,4191.6,0.5378]
[1754829577806,0.9722,4191.6,4191.5,2.12613229]
[1754829578002,1.7375,4191.6,4191.5,2.66393229]
[1754829578496,1.7375,4191.6,4191.5,0.9491]
[1754829578701,2.21463,4191.5,4191.4,2.66393229]
[1754829579305,2.21463,4191.5,4191.4,3.28383229]
[1754829580698,2.06483,4191.5,4191.4,1.71483229]
[1754829580898,1.7375,4191.4,4191.3,1.71483229]
[1754829581709,1.7375,4191.4,4191.3,2.12613229]
[1754829581909,1.7375,4191.3,4191.2,1.71483229]
[1754829582110,1.7375,4191.0,4190.9,1.71483229]
[1754829582306,2.2147,4190.9,4190.7,1.71483229]
[1754829582507,2.2147,4190.9,4190.7,0.4113]
[1754829582508,1.7375,4190.8,4190.7,0.4113]
[1754829582712,1.5877,4190.8,4190.7,0.6864]
[1754829583211,0.6951,4190.8,4190.7,1.854]
[1754829583613,1.348,4190.8,4190.7,1.854]
[1754829584106,0.868,4190.9,4190.8,1.854]
[1754829584317,1.3936,4190.9,4190.8,1.854]
[1754829584512,1.8252,4190.9,4190.8,1.854]
[1754829585515,1.975,4190.9,4190.8,1.854]
[1754829585710,0.6529,4190.9,4190.8,1.854]
[1754829585916,1.0845,4190.9,4190.8,1.854]
[1754829586114,1.348,4190.9,4190.8,1.854]
[1754829586518,1.4978,4190.9,4190.8,1.854]
[1754829587818,1.7375,4190.9,4190.8,1.854]
[1754829588117,0.2397,4190.8,4190.7,15.232]
[1754829588322,1.7375,4190.8,4190.7,15.6433]
[1754829588710,1.7375,4190.5,4190.4,0.6864]
[1754829588914,2.21474,4190.5,4190.4,15.9174]
[1754829589114,2.21474,4190.5,4190.4,16.1801]
[1754829590509,2.21474,4190.5,4190.4,16.8]
[1754829591307,2.21474,4190.5,4190.4,17.085]
[1754829591811,1.97504,4190.5,4190.4,17.085]
[1754829592817,0.47724,4190.6,4190.4,16.0538]
[1754829593018,1.29964,4190.6,4190.5,1.854]
[1754829593219,1.82524,4190.6,4190.5,1.854]
[1754829593517,0.4316,4190.7,4190.6,1.569]
[1754829593819,0.3908,4190.7,4190.6,0.8228]
[1754829594021,1.7375,4190.7,4190.6,0.8228]
[1754829594313,1.7375,4190.7,4190.6,0.5378]
[1754829594526,1.7375,4190.7,4190.6,0.9491]
[1754829595217,1.7375,4190.7,4190.6,1.569]
[1754829595415,0.4316,4190.7,4190.6,2.33123]
[1754829595616,1.29961,4190.9,4190.8,1.854]
[1754829596019,1.82521,4190.9,4190.8,1.854]
[1754829596216,1.97501,4190.9,4190.8,1.854]
[1754829601723,2.21471,4190.9,4190.8,1.854]
[1754829601924,2.21474,4190.5,4190.4,16.1801]
[1754829602119,2.21474,4190.5,4190.4,16.8]
[1754829602319,2.21474,4190.5,4190.4,17.085]
[1754829603318,2.21474,4190.5,4190.4,0.2751]
[1754829603519,2.21474,4190.5,4190.4,15.9154]
[1754829604623,2.21474,4190.5,4190.4,16.1781]
[1754829606321,2.21474,4190.5,4190.4,0.9491]
[1754829606714,2.21474,4190.5,4190.4,16.1771]
[1754829607117,2.21474,4190.5,4190.4,0.9491]
[1754829607621,2.21474,4190.5,4190.4,0.2751]
[1754829607823,2.21474,4190.5,4190.4,0.6797]
[1754829609228,1.02337,4190.3,4190.2,1.71483229]
[1754829609529,2.25397,4190.3,4190.2,17.89433229]
[1754829610115,2.25397,4190.3,4190.2,16.1795]
[1754829610315,2.25397,4190.3,4190.2,1.7165638]
[1754829610622,1.7767,4190.0,4189.9,1.7165638]
[1754829611327,1.7767,4190.0,4189.9,2.3976638]
[1754829611620,1.7767,4190.0,4189.9,3.2358638]
[1754829611826,1.7767,4190.0,4189.9,2.3976638]
[1754829612021,1.7767,4190.0,4189.9,1.7165638]
[1754829612217,1.355,4189.8,4189.6,1.7165638]
[1754829612420,0.7863,4189.5,4189.4,15.227]
[1754829612623,1.7767,4189.5,4189.4,15.9081]
[1754829612818,1.7767,4189.5,4189.4,16.1795]
[1754829613025,1.7767,4189.5,4189.4,16.7463]
[1754829613224,1.7767,4189.5,4189.4,17.0188]
[1754829615323,1.7767,4189.5,4189.4,16.1795]
[1754829616430,1.7767,4189.5,4189.4,17.0188]
[1754829618028,0.47729,4190.1,4189.5,0.7945]
[1754829618235,1.86338,4190.2,4190.1,1.7918]
[1754829618731,2.01378,4190.2,4190.1,1.7918]
[1754829619127,1.3861,4190.2,4190.1,1.7918]
[1754829624233,1.5365,4190.2,4190.1,1.7918]
[1754829626728,1.3861,4190.2,4190.1,1.7918]
[1754829627125,1.5365,4190.2,4190.1,1.7918]
[1754829629840,2.25398,4190.2,4190.1,1.7918]
[1754829630536,2.255,4190.0,4189.9,2.2644638]
[1754829630734,2.255,4190.0,4189.9,2.6690638]
[1754829631134,2.25502,4189.8,4189.7,2.6690638]
[1754829631641,2.25502,4189.8,4189.7,0.9525]
[1754829632440,1.7777,4189.8,4189.7,1.7706]
[1754829632638,1.5367,4190.3,4190.2,0.8114]
[1754829632940,0.9644,4190.3,4190.2,1.7706]
[1754829633134,1.3861,4190.3,4190.2,1.7706]
[1754829634938,1.19291,4191.3,4190.2,1.7706]
[1754829635140,2.01392,4190.7,4190.6,1.7706]
[1754829635439,2.25492,4190.7,4190.6,0.2765]
[1754829636043,2.25492,4190.7,4190.6,0.6874]
[1754829637932,2.25492,4190.7,4190.6,0.9532]
[1754829643148,2.25492,4190.7,4190.6,0.2765]
[1754829643344,1.23516,4190.4,4190.3,0.9363]
[1754829643544,2.18606,4190.4,4190.3,0.9363]
[1754829644545,2.18606,4190.4,4190.3,1.4844]
[1754829644747,1.4689,4190.4,4190.3,1.744]
[1754829644948,1.3189,4190.4,4190.3,1.744]
[1754829645545,0.6388,4190.4,4190.3,1.744]
[1754829645750,1.3189,4190.4,4190.3,1.744]
[1754829646048,1.94609,4191.0,4190.9,1.744]
[1754829647148,1.4689,4191.0,4190.9,1.744]
[1754829647753,1.94609,4191.0,4190.9,1.744]
[1754829648145,1.4689,4191.0,4190.9,2.2212]
[1754829648749,1.4689,4191.0,4190.9,1.744]
[1754829649650,1.7088,4190.7,4190.6,0.6705]
[1754829650253,1.7088,4190.7,4190.6,0.9363]
[1754829650648,1.7088,4190.7,4190.6,1.4844]
[1754829651343,0.9079,4190.5,4190.4,1.97387422]
[1754829651556,1.7088,4190.5,4190.4,0.6705]
[1754829652250,1.7088,4190.5,4190.4,0.9363]
[1754829652453,1.7088,4190.5,4190.4,1.744]
[1754829652848,1.7088,4190.5,4190.4,3.45827422]
[1754829653154,1.3189,4190.5,4190.4,3.45827422]
[1754829653355,0.9046,4190.5,4190.4,3.93553422]
[1754829653555,0.3866,4190.5,4190.4,2.22126]
[1754829653754,1.4095,4190.9,4190.8,1.744]
[1754829653954,1.3189,4190.9,4190.8,1.744]
[1754829654153,1.9461,4190.9,4190.8,1.744]
[1754829654555,2.186,4190.9,4190.8,1.744]
[1754829654952,2.186,4190.9,4190.8,0.9363]
[1754829656649,0.7579,4190.7,4190.6,2.65195174]
[1754829656851,1.7088,4190.7,4190.6,2.65195174]
[1754829657252,1.7088,4190.7,4190.6,3.45965174]
[1754829658856,1.4689,4190.7,4190.6,3.45965174]
[1754829659256,1.3189,4190.7,4190.6,3.45965174]
[1754829660061,1.7088,4190.7,4190.6,3.45965174]
[1754829660469,1.7088,4190.7,4190.6,3.93688174]
[1754829660964,1.4689,4190.7,4190.6,3.93688174]
[1754829661262,1.3189,4190.7,4190.6,3.93688174]
[1754829661562,1.3189,4190.7,4190.6,2.22123]
[1754829662359,0.6388,4190.7,4190.6,2.22123]
[1754829662561,0.3866,4190.7,4190.6,2.22123]
[1754829663468,1.3189,4190.7,4190.6,2.22123]
[1754829665265,1.7088,4191.6,4191.5,1.1959]
[1754829665461,1.7088,4191.6,4191.5,1.715]
[1754829667670,1.7088,4191.6,4191.5,0.9363]
[1754829668567,1.7088,4191.6,4191.5,1.4554]
[1754829669957,1.7088,4191.6,4191.5,0.2596]
[1754829670162,1.7019,4191.2,4191.1,3.02020453]
[1754829670369,1.7019,4191.2,4191.1,3.16810453]
[1754829670566,1.7019,4191.2,4191.1,3.40470453]
[1754829670768,1.462,4191.2,4191.1,3.40470453]
[1754829671068,1.3126,4191.2,4191.1,3.40470453]
[1754829671467,1.7019,4191.2,4191.1,3.40470453]
[1754829673166,0.5224,4191.2,4191.1,2.47240453]
[1754829673369,1.3126,4191.2,4191.1,2.47240453]
[1754829673765,1.3126,4191.2,4191.1,3.40470453]
[1754829673966,1.3126,4191.2,4191.1,1.6896]
[1754829675072,1.3126,4191.2,4191.1,2.16678]
[1754829676072,0.86082,4191.6,4191.3,0.47714]
[1754829676371,0.7902,4191.6,4191.5,1.23443]
[1754829676875,0.7902,4191.6,4191.5,2.16673]
[1754829677467,1.3126,4191.6,4191.5,2.16673]
[1754829679169,1.3126,4191.8,4191.7,2.16671]
[1754829680474,1.3126,4192.0,4191.9,2.16668]
[1754829681071,0.62644,4192.3,4192.0,0.9323]
[1754829681265,0.6718,4192.3,4192.2,0.7573]
[1754829681471,0.9117,4192.3,4192.2,0.6767]
[1754829681875,1.7019,4192.3,4192.2,0.6767]
[1754829682069,1.7019,4192.3,4192.2,0.9339]
[1754829682269,1.7019,4192.3,4192.2,1.3184]
[1754829682478,1.7019,4192.3,4192.2,1.6896]
[1754829683776,1.462,4192.3,4192.2,1.6896]
[1754829684079,1.7019,4192.3,4192.2,0.9339]
[1754829684572,1.0456,4192.5,4192.4,0.5207]
[1754829684773,1.3126,4192.5,4192.4,1.6896]
[1754829685370,0.5224,4193.0,4192.9,0.9339]
[1754829685677,1.3126,4193.0,4192.9,1.6896]
[1754829685870,1.462,4193.0,4192.9,1.6896]
[1754829689274,1.7019,4193.0,4192.9,1.6896]
[1754829691779,1.73477322,4193.0,4192.9,1.6896]
[1754829692674,1.73477322,4193.0,4192.9,0.9339]
[1754829694873,1.34547322,4193.0,4192.9,1.1705]
[1754829695073,1.34547322,4193.0,4192.9,1.6896]
[1754829696285,1.34547322,4193.0,4192.9,2.16657]
[1754829696680,0.03287322,4193.0,4192.9,2.16657]
[1754829696884,1.32347322,4193.0,4192.9,1.6896]
[1754829697085,1.47367322,4193.0,4192.9,1.6896]
[1754829697285,1.32347322,4193.0,4192.9,1.6896]
[1754829697484,0.03287322,4193.0,4192.9,1.6896]
[1754829698478,0.47686,4193.9,4192.9,0.5191]
[1754829698679,1.7431,4193.8,4193.7,0.2681]
[1754829698879,1.7431,4193.8,4193.7,0.6753]
[1754829699081,1.7431,4193.8,4193.7,0.9256]
[1754829699582,1.7431,4193.8,4193.7,1.4452]
[1754829699888,1.7431,4193.8,4193.7,1.6592]
[1754829700073,1.2906,4193.8,4193.7,1.6592]
[1754829700279,0.5322,4193.9,4193.8,1.61767]
[1754829700476,1.2906,4193.9,4193.8,2.13607]
[1754829701276,1.4737,4193.9,4193.8,2.13607]
[1754829701483,1.7431,4193.9,4193.8,2.13607]
[1754829701981,1.7431,4194.1,4194.0,1.1396]
[1754829702183,1.7431,4194.1,4194.0,0.6753]
[1754829702388,0.8016,4194.1,4193.8,0.47686]
[1754829702578,0.8016,4193.9,4193.8,1.40246]
[1754829702783,1.7431,4193.9,4193.8,0.9256]
[1754829703288,1.7431,4193.9,4193.8,0.2681]
[1754829703486,0.47683,4194.2,4193.8,0.2681]
[1754829703690,1.473,4193.9,4193.8,1.134]
[1754829703891,1.7424,4193.9,4193.8,1.6501]
[1754829704284,1.2906,4193.9,4193.8,1.6501]
[1754829704487,1.2906,4194.1,4194.0,0.7268]
[1754829704790,1.2906,4194.1,4194.0,1.6501]
[1754829704998,0.47683,4194.1,4194.0,1.6501]
[1754829705396,0.47681,4194.3,4194.2,0.7268]
[1754829705593,1.76741,4194.3,4194.2,1.6501]
[1754829706296,1.94981,4194.3,4194.2,1.6501]
[1754829706695,2.21921,4194.3,4194.2,1.6501]
[1754829706897,0.47681,4194.3,4194.2,0.9256]
[1754829707101,1.94981,4194.3,4194.2,1.6501]
[1754829708304,1.76741,4194.3,4194.2,1.6501]
[1754829708493,1.94981,4194.3,4194.2,1.6501]
[1754829708692,1.76741,4194.3,4194.2,1.6501]
[1754829708902,2.21921,4194.3,4194.2,1.6501]
[1754829709702,1.94981,4194.3,4194.2,1.6501]
[1754829710502,0.47681,4194.3,4194.2,1.6501]
[1754829710804,1.23521,4194.3,4194.2,1.6501]
[1754829711303,1.76741,4194.3,4194.2,1.6501]
[1754829711796,1.2906,4194.3,4194.2,1.6501]
[1754829712496,1.473,4194.3,4194.2,1.6501]
[1754829715099,1.7424,4194.3,4194.2,1.6501]
[1754829715396,1.7424,4194.0,4193.9,0.9042]
[1754829715600,1.7424,4194.0,4193.9,0.5184]
[1754829715900,1.7424,4194.0,4193.9,0.9256]
[1754829716398,0.47686,4193.9,4193.7,1.71391605]
[1754829716603,2.21926,4193.9,4193.8,0.6753]
[1754829716898,2.21926,4193.9,4193.8,0.9256]
[1754829717295,1.7424,4193.9,4193.8,1.4417]
[1754829717500,1.7424,4193.9,4193.8,1.6501]
[1754829718098,1.2906,4193.9,4193.8,1.6501]
[1754829718492,1.473,4193.9,4193.8,1.6501]
[1754829718697,1.473,4193.9,4193.8,1.134]
[1754829718698,1.7424,4193.9,4193.8,1.134]
[1754829718898,1.7424,4193.9,4193.8,0.9256]
[1754829719997,1.7424,4193.9,4193.8,16.1166]
[1754829720194,1.7424,4193.9,4193.8,16.325]
[1754829720402,1.7424,4193.9,4193.8,17.31797]
[1754829720703,1.7424,4193.9,4193.8,16.8411]
[1754829720905,2.21926,4193.9,4193.8,0.9256]
[1754829721107,1.19204,4194.4,4193.5,16.90391605]
[1754829721108,1.3571,4193.6,4193.5,16.90391605]
[1754829721405,1.7424,4193.6,4193.5,15.19]
[1754829721703,2.2193,4193.5,4193.4,1.71391605]
[1754829721905,1.2785,4193.5,4193.2,1.71391605]
[1754829722104,1.27854,4193.2,4192.9,16.90391605]
[1754829722303,0.8016,4193.1,4193.0,0.9256]
[1754829722504,0.8016,4193.1,4193.0,0.2681]
[1754829722706,0.8016,4193.1,4193.0,2.38921605]
[1754829722906,1.7424,4193.1,4193.0,2.38921605]
[1754829723107,1.7424,4193.1,4193.0,2.63951605]
[1754829723303,1.7424,4193.1,4193.0,3.02531605]
[1754829723502,1.7424,4193.1,4193.0,3.15561605]
[1754829723703,1.7424,4193.1,4193.0,2.63951605]
[1754829724208,1.7424,4193.1,4193.0,2.84791605]
[1754829724409,1.2906,4193.1,4193.0,1.6501]
[1754829724609,1.2906,4193.8,4193.7,1.45168]
[1754829724809,1.473,4193.8,4193.7,2.12698]
[1754829725013,1.7424,4194.2,4194.1,1.78823]
[1754829725207,1.7424,4194.2,4194.1,1.3114]
[1754829725397,1.7424,4194.2,4194.1,0.9256]
[1754829726510,1.2906,4194.2,4194.1,1.1178]
[1754829726705,1.473,4194.2,4194.1,1.6236]
[1754829727303,1.2906,4194.2,4194.1,1.6236]
[1754829727812,1.2893,4194.2,4194.1,1.6236]
[1754829728011,1.4717,4194.2,4194.1,1.6236]
[1754829728406,1.4717,4194.2,4194.1,3.33204525]
[1754829730808,1.7403,4194.2,4194.1,2.82624525]
[1754829731410,1.7403,4194.2,4194.1,2.63404525]
[1754829732813,1.7403,4194.2,4194.1,1.4314]
[1754829733406,1.7403,4194.2,4194.1,0.9256]
[1754829734313,1.428,4194.3,4194.2,1.80732]
[1754829734513,1.6966,4194.3,4194.2,2.08092]
[1754829734710,0.7768,4194.3,4194.2,0.9061]
[1754829734915,0.7768,4194.3,4194.2,1.6041]
[1754829735414,1.6966,4194.3,4194.2,1.6041]
[1754829738817,1.428,4194.3,4194.2,1.6041]
[1754829739122,1.2456,4194.3,4194.2,1.6041]
[1754829739519,0.8738,4194.3,4194.2,1.6041]
[1754829739819,1.2456,4194.3,4194.2,1.6041]
[1754829740210,0.92777,4194.7,4194.6,0.2736]
[1754829740522,1.80777,4194.7,4194.6,0.6604]
[1754829740816,0.9198,4194.6,4194.5,0.2736]
[1754829741023,1.6966,4194.6,4194.5,0.9061]
[1754829743019,1.6966,4194.6,4194.5,1.4119]
[1754829743219,1.6966,4194.6,4194.5,1.6041]
[1754829751231,1.6966,4194.6,4194.5,0.2736]
[1754829751622,1.6966,4194.6,4194.5,0.9061]
[1754829751822,1.6966,4194.6,4194.5,1.6041]
[1754829752524,0.5082,4195.1,4195.0,1.18823]
[1754829752723,1.428,4195.1,4195.0,2.08083]
[1754829754027,1.6966,4195.1,4195.0,1.38283]
[1754829754226,1.6966,4195.1,4195.0,1.76853]
[1754829754423,1.6966,4195.1,4195.0,1.88863]
[1754829755719,1.6966,4195.1,4195.0,1.38283]
[1754829755925,1.6966,4195.1,4195.0,1.5549]
[1754829757020,1.6966,4195.1,4195.0,0.9061]
[1754829757424,1.6966,4195.1,4195.0,1.5549]
[1754829758130,1.5828,4195.5,4195.4,0.47669]
[1754829758327,2.791,4195.5,4195.4,2.06619]
[1754829758528,1.691,4195.0,4194.9,2.64585406]
[1754829758732,1.691,4195.0,4194.9,16.59844]
[1754829759232,1.691,4195.0,4194.9,17.07694]
[1754829759429,1.691,4195.0,4194.9,18.30153578]
[1754829759735,1.691,4195.0,4194.9,1.97469578]
[1754829759928,1.691,4195.0,4194.9,2.38979578]
[1754829760136,1.691,4195.0,4194.9,1.70309578]
[1754829760335,1.691,4195.0,4194.9,2.11819578]
[1754829760637,1.691,4195.0,4194.9,2.38979578]
[1754829760838,1.4284,4195.0,4194.9,1.5895]
[1754829761439,1.691,4195.0,4194.9,1.5895]
[1754829761637,1.691,4195.0,4194.9,1.483]
[1754829761836,1.691,4195.0,4194.9,0.9407]
[1754829762036,1.691,4195.0,4194.8,2.17984578]
[1754829762238,1.691,4194.9,4194.8,2.86654578]
[1754829762440,1.691,4194.9,4194.8,3.12054578]
[1754829762735,1.691,4194.9,4194.8,3.76934578]
[1754829762935,1.691,4194.9,4194.8,2.06625]
[1754829763531,1.57668,4195.5,4195.4,0.1703]
[1754829763733,3.00508,4195.5,4195.4,0.6959]
[1754829763938,3.26768,4195.5,4195.4,0.9407]
[1754829764238,3.26768,4195.5,4195.4,0.6867]
[1754829764636,3.26768,4195.5,4195.4,0.2716]
[1754829765335,3.26768,4195.5,4195.2,0.4151]
[1754829765530,0.2626,4195.3,4195.2,0.6867]
[1754829765730,1.691,4195.3,4195.2,0.6867]
[1754829766133,1.2461,4195.3,4195.2,0.74831]
[1754829766334,1.691,4195.3,4195.2,2.06621]
[1754829766534,1.691,4195.3,4195.2,1.5895]
[1754829768240,2.1677,4195.3,4195.2,1.5895]
[1754829768439,1.691,4195.3,4195.2,1.5895]
[1754829768938,1.691,4195.3,4195.2,2.06621]
[1754829769141,1.691,4195.3,4195.2,1.5895]
[1754829769733,2.1677,4195.3,4195.2,1.483]
[1754829770339,2.1677,4195.3,4195.2,1.111]
[1754829771038,2.1677,4195.3,4195.2,0.9407]
[1754829774637,0.7454,4194.4,4194.3,1.70309578]
[1754829774842,2.16781,4194.3,4194.2,2.38979578]
[1754829775137,1.691,4194.2,4194.0,1.70309578]
[1754829775344,1.691,4194.2,4193.7,2.14106629]
[1754829775345,1.22225,4194.0,4193.9,1.70309578]
[1754829775543,2.16785,4194.0,4193.9,0.4151]
[1754829775940,1.691,4194.0,4193.9,1.5895]
[1754829776248,0.86304,4194.1,4194.0,0.4151]
[1754829776438,1.14194,4194.1,4194.0,1.5895]
[1754829776837,1.51904,4194.1,4194.0,1.5895]
[1754829777031,0.2626,4193.9,4193.8,1.70309578]
[1754829777238,2.16797,4193.8,4193.6,1.70309578]
[1754829777438,1.6911,4193.7,4193.6,0.4151]
[1754829778332,1.6911,4193.7,4193.6,0.6867]
[1754829780937,0.47694,4193.2,4193.1,1.70309578]
[1754829781138,2.16804,4193.2,4193.1,2.64379578]
[1754829781438,2.16804,4193.2,4193.1,0.9407]
[1754829782438,2.16804,4193.2,4193.1,0.2716]
[1754829782647,1.22237,4192.9,4192.8,0.6867]
[1754829783041,1.22237,4192.9,4192.8,0.9407]
[1754829783240,2.16807,4192.9,4192.8,0.9407]
[1754829783442,2.16807,4192.9,4192.8,1.4093]
[1754829785242,2.16807,4192.9,4192.8,1.5639]
[1754829785544,1.72307,4192.9,4192.8,1.5442]
[1754829786749,0.47695,4193.1,4193.0,1.4768]
[1754829787048,1.68015,4193.1,4193.0,1.4768]
[1754829788847,0.47692,4193.4,4193.0,0.6421]
[1754829789046,0.7267,4193.3,4193.2,1.1245]
[1754829789249,0.7267,4193.3,4193.2,1.4768]
[1754829789544,1.2032,4193.3,4193.2,1.4768]
[1754829790344,1.3857,4193.3,4193.2,1.4768]
[1754829790742,0.3511,4195.9,4195.4,1.2349]
[1754829790947,1.4756,4195.5,4195.4,1.2349]
[1754829791141,1.4756,4195.5,4195.4,0.2581]
[1754829791142,2.5812,4195.5,4195.4,0.2581]
[1754829791449,1.8839,4195.2,4195.1,0.8826]
[1754829791836,0.7545,4195.2,4194.5,0.3894]
[1754829792042,0.4765,4194.6,4194.5,1.71169]
[1754829792346,1.2032,4194.6,4194.5,1.71169]
[1754829794643,0.6164,4194.6,4194.5,1.71169]
[1754829794943,0.3756,4194.6,4194.5,1.71169]
[1754829796442,0.3756,4194.8,4194.7,0.47677]
[1754829796748,0.9675,4194.8,4194.7,1.71167]
[1754829797142,1.2032,4194.8,4194.7,1.71167]
[1754829797342,0.9624,4195.2,4195.1,0.7417]
[1754829797541,1.6059,4195.2,4195.1,1.2349]
[1754829797746,1.8839,4195.2,4195.1,1.2349]
[1754829800953,1.8839,4195.2,4195.1,0.8826]
[1754829806054,1.8839,4195.2,4195.1,1.2349]
[1754829809055,2.6328,4195.5,4195.4,0.8826]
[1754829809252,2.9839,4195.5,4195.4,0.8826]
[1754829810756,3.46058,4195.5,4195.4,0.8826]
[1754829811451,0.4765,4195.2,4195.1,0.6245]
[1754829811652,0.3511,4195.3,4195.2,0.8826]
[1754829811856,2.3606,4195.3,4195.2,0.8826]
[1754829813359,2.3606,4195.3,4195.2,0.2581]
[1754829813560,0.4767,4195.3,4195.2,0.8826]
[1754829813762,2.3606,4195.3,4195.2,1.2349]
[1754829815161,1.2034,4195.3,4195.2,1.2349]
[1754829815461,0.9675,4195.3,4195.2,1.2349]
[1754829815665,1.2032,4195.3,4195.2,1.2349]
[1754829817059,2.30538,4195.5,4195.4,1.2989]
[1754829817462,2.77478,4195.5,4195.4,1.2989]
[1754829817657,3.17848,4195.5,4195.4,1.2989]
[1754829818063,3.45528,4195.5,4195.4,1.2989]
[1754829819163,2.77478,4195.5,4195.4,0.9298]
[1754829819464,3.17848,4195.5,4195.4,1.2989]
[1754829819965,2.2981,4195.5,4195.4,1.2989]
[1754829820158,2.2981,4195.5,4195.4,3.00199578]
[1754829821066,2.9786,4195.5,4195.4,3.00199578]
[1754829821272,2.9786,4195.5,4195.4,2.63289578]
[1754829821470,2.9786,4195.5,4195.4,3.00199578]
[1754829822869,2.2981,4195.5,4195.4,1.2989]
[1754829823070,1.8287,4195.5,4195.4,1.2989]
[1754829823372,1.4612,4195.5,4195.4,1.77559]
[1754829824163,1.1,4195.5,4195.4,1.77559]
[1754829827667,1.4612,4195.5,4195.4,1.77559]
[1754829829077,1.1,4195.5,4195.4,1.77559]
[1754829830271,1.4612,4195.5,4195.4,1.77559]
[1754829831271,1.1,4195.5,4195.4,1.77559]
[1754829832873,0.6754,4195.5,4195.4,1.77559]
[1754829834271,1.5174,4196.4,4196.3,0.98538]
[1754829834465,1.5174,4196.4,4196.3,1.63758]
[1754829834671,1.5174,4196.4,4196.3,1.161]
[1754829834873,1.8786,4196.4,4196.3,1.161]
[1754829835171,1.8786,4196.4,4196.3,0.7919]
[1754829835563,1.4749,4196.4,4196.3,1.161]
[1754829835771,1.8786,4196.4,4196.3,1.161]
[1754829836071,1.1324,4196.3,4196.2,0.47659]
[1754829836281,1.8786,4196.3,4196.2,0.47659]
[1754829836476,1.8786,4196.3,4196.2,0.75969]
[1754829836668,1.8786,4196.3,4196.2,1.25069967]
[1754829839275,1.8786,4196.3,4196.2,1.51189967]
[1754829839478,1.8786,4196.3,4196.2,1.88099967]
[1754829841074,1.8786,4196.3,4196.2,1.51189967]
[1754829841381,1.8786,4196.3,4196.2,1.25070967]
[1754829841576,1.8786,4196.3,4196.2,0.96760967]
[1754829842479,1.8786,4196.3,4196.2,1.25070967]
[1754829843079,1.8786,4196.3,4196.2,0.72000967]
[1754829843574,1.8786,4196.3,4196.2,0.96760967]
[1754829843777,1.8786,4196.3,4196.2,1.25070967]
[1754829844181,1.8786,4196.3,4196.2,1.51190967]
[1754829844380,1.8786,4196.3,4196.2,1.88100967]
[1754829844777,1.8786,4196.3,4196.2,1.51190967]
[1754829845177,1.8786,4196.3,4196.2,1.88100967]
[1754829845382,1.8786,4196.3,4196.2,1.40440967]
[1754829845776,1.8786,4196.3,4196.2,1.39140967]
[1754829848185,1.8786,4196.3,4196.2,1.03530967]
[1754829848385,1.8786,4196.3,4196.2,0.77410967]
[1754829848682,1.8786,4196.3,4196.2,0.49100967]
[1754829849485,1.8786,4196.3,4196.2,0.77440967]
[1754829850280,1.8786,4196.3,4196.2,2.47349738]
[1754829851488,1.8786,4196.3,4196.2,1.94249738]
[1754829851688,1.8786,4196.3,4196.2,2.17199738]
[1754829851986,1.8786,4196.3,4196.2,2.45439738]
[1754829853191,1.8786,4196.3,4196.2,0.75530967]
[1754829853485,1.8513,4196.9,4196.8,0.47653]